[Event "Titled Tuesday Blitz August 31 2021"]
[White "Seemann, Jakub"]
[Black "Nilsen, Tobias Lang"]
[WhiteFideId "21874697"]
[BlackFideId "1521624"]
[WhiteElo "1805"]
[BlackElo "1975"]
[Result "1-0"]
[Round "10"]
[TimeControl "180+1"]
[Date "2021.08.31"]
[WhiteClock "0:01:23"]
[BlackClock "0:00:10"]

1. Nf3 {[%clk 0:03:00]}  d5 {[%clk 0:02:59]} 2. b3 {[%clk 0:03:00]}  Bg4 {[%clk 0:02:58]} 3. Bb2 {[%clk 0:02:59]}  e6 {[%clk 0:02:56]} 4. g3 {[%clk 0:02:58]}  Bxf3 {[%clk 0:02:56]} 5. exf3 {[%clk 0:02:59]}  Nf6 {[%clk 0:02:56]} 6. Bg2 {[%clk 0:02:59]}  c5 {[%clk 0:02:56]} 7. O-O {[%clk 0:02:59]}  Nc6 {[%clk 0:02:57]} 8. d3 {[%clk 0:02:59]}  Be7 {[%clk 0:02:56]} 9. f4 {[%clk 0:02:59]}  O-O {[%clk 0:02:56]} 10. Nd2 {[%clk 0:03:00]}  Rc8 {[%clk 0:02:55]} 11. Nf3 {[%clk 0:03:01]}  Bd6 {[%clk 0:02:54]} 12. Ne5 {[%clk 0:03:00]}  Re8 {[%clk 0:02:53]} 13. c4 {[%clk 0:03:00]}  Qc7 {[%clk 0:02:43]} 14. Nxc6 {[%clk 0:02:52]}  bxc6 {[%clk 0:02:44]} 15. d4 {[%clk 0:02:49]}  dxc4 {[%clk 0:02:29]} 16. dxc5 {[%clk 0:02:46]}  Bxc5 {[%clk 0:02:27]} 17. bxc4 {[%clk 0:02:45]}  Be7 {[%clk 0:02:23]} 18. Qc2 {[%clk 0:02:41]}  Red8 {[%clk 0:02:20]} 19. Rfd1 {[%clk 0:02:39]}  Ne8 {[%clk 0:02:19]} 20. Rab1 {[%clk 0:02:35]}  Bf6 {[%clk 0:02:18]} 21. Ba3 {[%clk 0:02:35]}  Nd6 {[%clk 0:02:13]} 22. Bc5 {[%clk 0:02:21]}  Be7 {[%clk 0:01:42]} 23. Qa4 {[%clk 0:02:19]}  Nb7 {[%clk 0:01:36]} 24. Bxe7 {[%clk 0:02:14]}  Qxe7 {[%clk 0:01:33]} 25. Qxa7 {[%clk 0:02:13]}  Rxd1+ {[%clk 0:01:26]} 26. Rxd1 {[%clk 0:02:13]}  Qb4 {[%clk 0:01:21]} 27. Bxc6 {[%clk 0:02:09]}  Na5 {[%clk 0:00:49]} 28. Bf3 {[%clk 0:01:28]}  Nxc4 {[%clk 0:00:42]} 29. Qd4 {[%clk 0:01:28]}  h6 {[%clk 0:00:16]} 30. Be2 {[%clk 0:01:28]}  Qb2 {[%clk 0:00:02]} 31. Bxc4 {[%clk 0:01:27]}  Qxd4 {[%clk 0:00:02]} 32. Rxd4 {[%clk 0:01:27]}  Ra8 {[%clk 0:00:03]} 33. Bb3 {[%clk 0:01:26]}  Rc8 {[%clk 0:00:03]} 34. a4 {[%clk 0:01:26]}  f6 {[%clk 0:00:04]} 35. a5 {[%clk 0:01:26]}  Re8 {[%clk 0:00:04]} 36. a6 {[%clk 0:01:26]}  Kh7 {[%clk 0:00:04]} 37. a7 {[%clk 0:01:26]}  Kg6 {[%clk 0:00:04]} 38. Ra4 {[%clk 0:01:25]}  Ra8 {[%clk 0:00:04]} 39. Bd1 {[%clk 0:01:26]}  Rxa7 {[%clk 0:00:05]} 40. Rxa7 {[%clk 0:01:25]}  f5 {[%clk 0:00:05]} 41. Ba4 {[%clk 0:01:25]}  e5 {[%clk 0:00:06]} 42. Be8+ {[%clk 0:01:26]}  Kf6 {[%clk 0:00:06]} 43. Rf7+ {[%clk 0:01:26]}  Ke6 {[%clk 0:00:06]} 44. fxe5 {[%clk 0:01:27]}  Kxe5 {[%clk 0:00:07]} 45. Rxg7 {[%clk 0:01:27]}  f4 {[%clk 0:00:07]} 46. gxf4+ {[%clk 0:01:27]}  Kf5 {[%clk 0:00:08]} 47. Rh7 {[%clk 0:01:27]}  h5 {[%clk 0:00:09]} 48. Rxh5+ {[%clk 0:01:27]}  Kg4 {[%clk 0:00:10]} 49. Rg5+ {[%clk 0:01:27]}  Kh4 {[%clk 0:00:10]} 50. Bg6 {[%clk 0:01:20]}  Kh3 {[%clk 0:00:10]} 51. Rg3+ {[%clk 0:01:21]}  Kh4 {[%clk 0:00:10]} 52. Bf5 {[%clk 0:01:22]}  Kh5 {[%clk 0:00:10]} 53. Rh3# {[%clk 0:01:23]} 1-0


[Site "https://www.chess.com"]

[Event "Titled Tuesday Blitz August 31 2021"]
[White "Semcesen, Daniel"]
[Black "Skatchkov, Valery"]
[WhiteFideId "1706993"]
[BlackFideId "24195812"]
[WhiteElo "2505"]
[BlackElo "2199"]
[Result "0-1"]
[Round "10"]
[TimeControl "180+1"]
[Date "2021.08.31"]
[WhiteClock "0:00:30"]
[BlackClock "0:00:59"]

1. d4 {[%clk 0:03:00]}  Nf6 {[%clk 0:02:59]} 2. c4 {[%clk 0:02:59]}  e6 {[%clk 0:03:00]} 3. Nf3 {[%clk 0:02:58]}  b6 {[%clk 0:02:59]} 4. g3 {[%clk 0:02:57]}  Bb7 {[%clk 0:02:59]} 5. Bg2 {[%clk 0:02:57]}  Be7 {[%clk 0:03:00]} 6. O-O {[%clk 0:02:55]}  O-O {[%clk 0:03:00]} 7. Nc3 {[%clk 0:02:53]}  Ne4 {[%clk 0:03:00]} 8. Bd2 {[%clk 0:02:51]}  Bf6 {[%clk 0:03:00]} 9. Qc2 {[%clk 0:02:47]}  Nxd2 {[%clk 0:02:53]} 10. Qxd2 {[%clk 0:02:45]}  d6 {[%clk 0:02:52]} 11. e4 {[%clk 0:02:43]}  Nd7 {[%clk 0:02:47]} 12. Rfe1 {[%clk 0:02:35]}  e5 {[%clk 0:02:47]} 13. d5 {[%clk 0:02:35]}  a5 {[%clk 0:02:45]} 14. b3 {[%clk 0:02:33]}  Nc5 {[%clk 0:02:45]} 15. Rab1 {[%clk 0:02:32]}  g6 {[%clk 0:02:40]} 16. Qc2 {[%clk 0:02:22]}  Bg7 {[%clk 0:02:39]} 17. a3 {[%clk 0:02:15]}  f5 {[%clk 0:02:35]} 18. exf5 {[%clk 0:02:09]}  gxf5 {[%clk 0:02:34]} 19. Nh4 {[%clk 0:02:05]}  e4 {[%clk 0:02:31]} 20. Bh3 {[%clk 0:02:00]}  Qg5 {[%clk 0:02:24]} 21. f4 {[%clk 0:01:53]}  Qh5 {[%clk 0:02:21]} 22. Bf1 {[%clk 0:01:48]}  Rae8 {[%clk 0:02:13]} 23. b4 {[%clk 0:01:45]}  axb4 {[%clk 0:02:12]} 24. axb4 {[%clk 0:01:44]}  Na6 {[%clk 0:01:49]} 25. Nb5 {[%clk 0:01:35]}  Re7 {[%clk 0:01:43]} 26. Kh1 {[%clk 0:01:26]}  Bf6 {[%clk 0:01:34]} 27. Ng2 {[%clk 0:01:25]}  Rg7 {[%clk 0:01:31]} 28. Qd1 {[%clk 0:01:16]}  Qh6 {[%clk 0:01:27]} 29. Ne3 {[%clk 0:01:15]}  Bd8 {[%clk 0:01:04]} 30. Nd4 {[%clk 0:01:14]}  Bc8 {[%clk 0:01:01]} 31. Bg2 {[%clk 0:00:43]}  Rxg3 {[%clk 0:01:00]} 32. Rf1 {[%clk 0:00:30]}  Rxe3 {[%clk 0:00:59]} 0-1


[Site "https://www.chess.com"]

[Event "Titled Tuesday Blitz August 31 2021"]
[White "Shahade, Gregory"]
[Black "Milchev, Nikolay"]
[WhiteFideId "2009064"]
[BlackFideId "2906090"]
[WhiteElo "2664"]
[BlackElo "2449"]
[Result "0-1"]
[Round "10"]
[TimeControl "180+1"]
[Date "2021.08.31"]
[WhiteClock "0:00:20"]
[BlackClock "0:00:06"]

1. e4 {[%clk 0:03:00]}  e5 {[%clk 0:02:59]} 2. Nf3 {[%clk 0:03:01]}  Nc6 {[%clk 0:02:59]} 3. Bb5 {[%clk 0:03:01]}  Nge7 {[%clk 0:03:00]} 4. O-O {[%clk 0:02:59]}  a6 {[%clk 0:03:00]} 5. Ba4 {[%clk 0:03:00]}  g6 {[%clk 0:03:00]} 6. c3 {[%clk 0:03:00]}  Bg7 {[%clk 0:03:01]} 7. d4 {[%clk 0:03:00]}  exd4 {[%clk 0:03:02]} 8. cxd4 {[%clk 0:03:01]}  b5 {[%clk 0:03:03]} 9. Bb3 {[%clk 0:02:59]}  O-O {[%clk 0:03:03]} 10. Bg5 {[%clk 0:02:57]}  h6 {[%clk 0:03:02]} 11. Be3 {[%clk 0:02:54]}  Na5 {[%clk 0:02:53]} 12. Bc2 {[%clk 0:02:45]}  Nc4 {[%clk 0:02:52]} 13. Bc1 {[%clk 0:02:44]}  d5 {[%clk 0:02:49]} 14. b3 {[%clk 0:02:37]}  Nd6 {[%clk 0:02:47]} 15. e5 {[%clk 0:02:36]}  Ndf5 {[%clk 0:02:45]} 16. g4 {[%clk 0:02:30]}  Nxd4 {[%clk 0:02:22]} 17. Qxd4 {[%clk 0:02:31]}  Nc6 {[%clk 0:02:22]} 18. Qf4 {[%clk 0:02:28]}  f6 {[%clk 0:01:53]} 19. e6 {[%clk 0:02:21]}  f5 {[%clk 0:01:44]} 20. gxf5 {[%clk 0:01:59]}  Bxa1 {[%clk 0:01:44]} 21. Qxh6 {[%clk 0:01:57]}  Bg7 {[%clk 0:01:08]} 22. Qxg6 {[%clk 0:01:53]}  Qf6 {[%clk 0:00:55]} 23. Qxf6 {[%clk 0:01:52]}  Bxf6 {[%clk 0:00:54]} 24. Bh6 {[%clk 0:01:49]}  Re8 {[%clk 0:00:54]} 25. Nbd2 {[%clk 0:01:35]}  Ne7 {[%clk 0:00:38]} 26. Kh1 {[%clk 0:01:34]}  Kh7 {[%clk 0:00:37]} 27. Bg5 {[%clk 0:01:32]}  Bxg5 {[%clk 0:00:30]} 28. Nxg5+ {[%clk 0:01:32]}  Kg7 {[%clk 0:00:31]} 29. Rg1 {[%clk 0:01:30]}  Bb7 {[%clk 0:00:28]} 30. Nf7+ {[%clk 0:01:27]}  Kf6 {[%clk 0:00:28]} 31. Nh6 {[%clk 0:01:09]}  d4+ {[%clk 0:00:20]} 32. f3 {[%clk 0:01:08]}  Ke5 {[%clk 0:00:18]} 33. Re1+ {[%clk 0:01:01]}  Kf4 {[%clk 0:00:18]} 34. f6 {[%clk 0:01:01]}  Rh8 {[%clk 0:00:15]} 35. Nf7 {[%clk 0:00:57]}  Nf5 {[%clk 0:00:13]} 36. Bxf5 {[%clk 0:00:55]}  Kxf5 {[%clk 0:00:12]} 37. Nxh8 {[%clk 0:00:55]}  Rxh8 {[%clk 0:00:13]} 38. e7 {[%clk 0:00:52]}  Kxf6 {[%clk 0:00:07]} 39. e8=Q {[%clk 0:00:52]}  Rxe8 {[%clk 0:00:08]} 40. Rxe8 {[%clk 0:00:52]}  c5 {[%clk 0:00:09]} 41. Rb8 {[%clk 0:00:51]}  Bd5 {[%clk 0:00:08]} 42. Rb6+ {[%clk 0:00:51]}  Ke5 {[%clk 0:00:08]} 43. Rxa6 {[%clk 0:00:51]}  c4 {[%clk 0:00:09]} 44. bxc4 {[%clk 0:00:49]}  bxc4 {[%clk 0:00:09]} 45. Ra5 {[%clk 0:00:48]}  c3 {[%clk 0:00:10]} 46. Nb3 {[%clk 0:00:43]}  d3 {[%clk 0:00:10]} 47. Kg1 {[%clk 0:00:39]}  d2 {[%clk 0:00:10]} 48. f4+ {[%clk 0:00:36]}  Ke4 {[%clk 0:00:06]} 49. Ra4+ {[%clk 0:00:36]}  Ke3 {[%clk 0:00:05]} 50. Nxd2 {[%clk 0:00:22]}  cxd2 {[%clk 0:00:06]} 51. Ra3+ {[%clk 0:00:23]}  Ke2 {[%clk 0:00:06]} 52. Rd3 {[%clk 0:00:20]}  Kxd3 {[%clk 0:00:05]} 53. Kf2 {[%clk 0:00:20]}  d1=Q {[%clk 0:00:06]} 0-1


[Site "https://www.chess.com"]

[Event "Titled Tuesday Blitz August 31 2021"]
[White "Shimelkov, Vasiliy"]
[Black "Baskin, Robert"]
[WhiteFideId "13701630"]
[BlackFideId "24662402"]
[WhiteElo "2073"]
[BlackElo "2462"]
[Result "1-0"]
[Round "10"]
[TimeControl "180+1"]
[Date "2021.08.31"]
[WhiteClock "0:00:40"]
[BlackClock "0:00:35"]

1. d4 {[%clk 0:03:00]}  d5 {[%clk 0:02:57]} 2. Nf3 {[%clk 0:02:58]}  Nf6 {[%clk 0:02:57]} 3. c4 {[%clk 0:02:57]}  c6 {[%clk 0:02:56]} 4. Nc3 {[%clk 0:02:56]}  e6 {[%clk 0:02:54]} 5. Bg5 {[%clk 0:02:54]}  Nbd7 {[%clk 0:02:53]} 6. e3 {[%clk 0:02:53]}  Qa5 {[%clk 0:02:52]} 7. Qc2 {[%clk 0:02:50]}  Ne4 {[%clk 0:02:36]} 8. cxd5 {[%clk 0:02:49]}  exd5 {[%clk 0:02:31]} 9. Bd3 {[%clk 0:02:47]}  Nxg5 {[%clk 0:02:20]} 10. Nxg5 {[%clk 0:02:46]}  h6 {[%clk 0:02:20]} 11. Nf3 {[%clk 0:02:44]}  Bd6 {[%clk 0:02:21]} 12. O-O {[%clk 0:02:39]}  O-O {[%clk 0:02:21]} 13. e4 {[%clk 0:02:34]}  dxe4 {[%clk 0:02:20]} 14. Nxe4 {[%clk 0:02:34]}  Be7 {[%clk 0:02:18]} 15. Rfe1 {[%clk 0:02:28]}  Nf6 {[%clk 0:02:18]} 16. Ng3 {[%clk 0:02:25]}  Bd6 {[%clk 0:02:13]} 17. Ne5 {[%clk 0:02:20]}  Be6 {[%clk 0:02:10]} 18. Bf5 {[%clk 0:02:16]}  Rfe8 {[%clk 0:02:07]} 19. a3 {[%clk 0:02:02]}  Rad8 {[%clk 0:01:59]} 20. b4 {[%clk 0:01:58]}  Qd5 {[%clk 0:01:58]} 21. Rad1 {[%clk 0:01:54]}  Bxf5 {[%clk 0:01:56]} 22. Nxf5 {[%clk 0:01:51]}  Bxe5 {[%clk 0:01:51]} 23. dxe5 {[%clk 0:01:49]}  Rxe5 {[%clk 0:01:50]} 24. Ne3 {[%clk 0:01:25]}  Rde8 {[%clk 0:01:35]} 25. Rxd5 {[%clk 0:01:21]}  Nxd5 {[%clk 0:01:34]} 26. h3 {[%clk 0:01:18]}  Nxe3 {[%clk 0:01:34]} 27. Rxe3 {[%clk 0:01:16]}  Rxe3 {[%clk 0:01:34]} 28. fxe3 {[%clk 0:01:15]}  Rxe3 {[%clk 0:01:35]} 29. a4 {[%clk 0:01:12]}  Re6 {[%clk 0:01:27]} 30. Qc5 {[%clk 0:01:09]}  b6 {[%clk 0:01:23]} 31. Qd4 {[%clk 0:01:04]}  c5 {[%clk 0:01:19]} 32. Qd8+ {[%clk 0:01:00]}  Kh7 {[%clk 0:01:19]} 33. b5 {[%clk 0:01:00]}  c4 {[%clk 0:01:12]} 34. Qc7 {[%clk 0:00:57]}  Kg6 {[%clk 0:01:01]} 35. Qxc4 {[%clk 0:00:55]}  Re7 {[%clk 0:01:00]} 36. Qc6+ {[%clk 0:00:47]}  f6 {[%clk 0:00:45]} 37. Qd6 {[%clk 0:00:45]}  Kf7 {[%clk 0:00:45]} 38. Qd5+ {[%clk 0:00:44]}  Kf8 {[%clk 0:00:42]} 39. h4 {[%clk 0:00:43]}  Re5 {[%clk 0:00:35]} 40. Qa8+ {[%clk 0:00:40]} 1-0


[Site "https://www.chess.com"]

[Event "Titled Tuesday Blitz August 31 2021"]
[White "Sihite, Chelsie Monica Ignesias"]
[Black "Musovic, Armin"]
[WhiteFideId "7101198"]
[BlackFideId "939935"]
[WhiteElo "2224"]
[BlackElo "2250"]
[Result "0-1"]
[Round "10"]
[TimeControl "180+1"]
[Date "2021.08.31"]
[WhiteClock "0:01:57"]
[BlackClock "0:01:48"]

1. c4 {[%clk 0:02:58]}  c5 {[%clk 0:02:57]} 2. g3 {[%clk 0:02:59]}  g6 {[%clk 0:02:54]} 3. Bg2 {[%clk 0:03:00]}  Nf6 {[%clk 0:02:55]} 4. Nf3 {[%clk 0:03:01]}  Bg7 {[%clk 0:02:55]} 5. O-O {[%clk 0:03:02]}  O-O {[%clk 0:02:56]} 6. Nc3 {[%clk 0:03:02]}  Nc6 {[%clk 0:02:56]} 7. d4 {[%clk 0:03:02]}  d5 {[%clk 0:02:56]} 8. cxd5 {[%clk 0:03:01]}  Nxd5 {[%clk 0:02:55]} 9. e4 {[%clk 0:03:01]}  Nxc3 {[%clk 0:02:51]} 10. bxc3 {[%clk 0:03:02]}  cxd4 {[%clk 0:02:52]} 11. cxd4 {[%clk 0:03:03]}  Bg4 {[%clk 0:02:52]} 12. e5 {[%clk 0:02:59]}  Bxf3 {[%clk 0:02:45]} 13. Bxf3 {[%clk 0:02:56]}  Qxd4 {[%clk 0:02:38]} 14. Bxc6 {[%clk 0:02:43]}  Qxa1 {[%clk 0:02:34]} 15. Bxb7 {[%clk 0:02:42]}  Rad8 {[%clk 0:02:16]} 16. Qa4 {[%clk 0:02:40]}  Qxe5 {[%clk 0:02:12]} 17. Be3 {[%clk 0:02:35]}  a5 {[%clk 0:02:08]} 18. Bg2 {[%clk 0:02:33]}  h5 {[%clk 0:02:08]} 19. h4 {[%clk 0:02:32]}  Qf5 {[%clk 0:02:00]} 20. Be4 {[%clk 0:02:31]}  Qg4 {[%clk 0:01:59]} 21. Kg2 {[%clk 0:02:19]}  Be5 {[%clk 0:01:52]} 22. Bh6 {[%clk 0:02:08]}  Rd4 {[%clk 0:01:52]} 23. Qc6 {[%clk 0:01:58]}  Qxe4+ {[%clk 0:01:50]} 24. Qxe4 {[%clk 0:01:59]}  Rxe4 {[%clk 0:01:51]} 25. Bxf8 {[%clk 0:01:59]}  Kxf8 {[%clk 0:01:52]} 26. Rb1 {[%clk 0:01:59]}  Ra4 {[%clk 0:01:52]} 27. Rb5 {[%clk 0:01:58]}  Bd6 {[%clk 0:01:51]} 28. Rb2 {[%clk 0:01:57]}  Ra3 {[%clk 0:01:48]} 0-1


[Site "https://www.chess.com"]

[Event "Titled Tuesday Blitz August 31 2021"]
[White "Sjugirov, Sanan"]
[Black "Goltsev, Dmitry"]
[WhiteFideId "4189302"]
[BlackFideId "24176710"]
[WhiteElo "2472"]
[BlackElo "2369"]
[Result "1/2-1/2"]
[Round "10"]
[TimeControl "180+1"]
[Date "2021.08.31"]
[WhiteClock "0:00:06"]
[BlackClock "0:00:09"]

1. d4 {[%clk 0:03:00]}  e6 {[%clk 0:02:58]} 2. c4 {[%clk 0:03:00]}  d5 {[%clk 0:02:59]} 3. Nf3 {[%clk 0:02:59]}  Nf6 {[%clk 0:02:59]} 4. Nc3 {[%clk 0:02:57]}  Bb4 {[%clk 0:02:59]} 5. Bg5 {[%clk 0:02:51]}  O-O {[%clk 0:02:58]} 6. e3 {[%clk 0:02:46]}  h6 {[%clk 0:02:57]} 7. Bh4 {[%clk 0:02:45]}  c6 {[%clk 0:02:57]} 8. Rc1 {[%clk 0:02:40]}  Nbd7 {[%clk 0:02:57]} 9. Bd3 {[%clk 0:02:38]}  Be7 {[%clk 0:02:55]} 10. O-O {[%clk 0:02:36]}  a6 {[%clk 0:02:52]} 11. a3 {[%clk 0:02:31]}  b5 {[%clk 0:02:46]} 12. c5 {[%clk 0:02:25]}  Ne8 {[%clk 0:02:38]} 13. Bg3 {[%clk 0:02:19]}  f5 {[%clk 0:02:36]} 14. b4 {[%clk 0:02:18]}  g5 {[%clk 0:02:31]} 15. Ne5 {[%clk 0:02:11]}  Nxe5 {[%clk 0:02:26]} 16. Bxe5 {[%clk 0:02:12]}  Nf6 {[%clk 0:02:25]} 17. a4 {[%clk 0:01:56]}  Bd7 {[%clk 0:02:21]} 18. Ra1 {[%clk 0:01:53]}  Be8 {[%clk 0:02:17]} 19. h3 {[%clk 0:01:46]}  Nd7 {[%clk 0:02:03]} 20. Bh2 {[%clk 0:01:45]}  Bf6 {[%clk 0:02:00]} 21. Bd6 {[%clk 0:01:33]}  Rf7 {[%clk 0:01:55]} 22. axb5 {[%clk 0:01:29]}  axb5 {[%clk 0:01:53]} 23. Rxa8 {[%clk 0:01:28]}  Qxa8 {[%clk 0:01:54]} 24. Qa1 {[%clk 0:01:28]}  Qb7 {[%clk 0:01:50]} 25. Qa5 {[%clk 0:01:19]}  Be7 {[%clk 0:01:43]} 26. Bxe7 {[%clk 0:01:11]}  Rxe7 {[%clk 0:01:42]} 27. Ra1 {[%clk 0:01:04]}  Nf6 {[%clk 0:01:39]} 28. Qd8 {[%clk 0:00:55]}  Qc7 {[%clk 0:01:37]} 29. Qxc7 {[%clk 0:00:51]}  Rxc7 {[%clk 0:01:38]} 30. Ne2 {[%clk 0:00:44]}  Kf7 {[%clk 0:01:38]} 31. Bc2 {[%clk 0:00:36]}  Ke7 {[%clk 0:01:38]} 32. Nc1 {[%clk 0:00:36]}  Kd7 {[%clk 0:01:35]} 33. Nd3 {[%clk 0:00:36]}  Kc8 {[%clk 0:01:33]} 34. f4 {[%clk 0:00:33]}  Kb8 {[%clk 0:01:27]} 35. Ne5 {[%clk 0:00:30]}  Nd7 {[%clk 0:01:25]} 36. Nxd7+ {[%clk 0:00:28]}  Rxd7 {[%clk 0:01:26]} 37. Kf2 {[%clk 0:00:27]}  Rg7 {[%clk 0:01:24]} 38. g3 {[%clk 0:00:20]}  gxf4 {[%clk 0:01:16]} 39. exf4 {[%clk 0:00:21]}  h5 {[%clk 0:01:15]} 40. Bd1 {[%clk 0:00:17]}  Ra7 {[%clk 0:01:14]} 41. Rxa7 {[%clk 0:00:17]}  Kxa7 {[%clk 0:01:15]} 42. Bc2 {[%clk 0:00:12]}  Kb8 {[%clk 0:01:11]} 43. g4 {[%clk 0:00:11]}  hxg4 {[%clk 0:01:11]} 44. hxg4 {[%clk 0:00:12]}  fxg4 {[%clk 0:01:12]} 45. Kg3 {[%clk 0:00:12]}  Kc7 {[%clk 0:01:08]} 46. Kxg4 {[%clk 0:00:12]}  Kd7 {[%clk 0:01:08]} 47. Kg5 {[%clk 0:00:13]}  Ke7 {[%clk 0:01:06]} 48. Bh7 {[%clk 0:00:12]}  Bd7 {[%clk 0:01:00]} 49. Bg6 {[%clk 0:00:12]}  Bc8 {[%clk 0:00:57]} 50. Bh5 {[%clk 0:00:06]}  Bd7 {[%clk 0:00:57]} 51. Be2 {[%clk 0:00:05]}  Be8 {[%clk 0:00:57]} 52. Bd3 {[%clk 0:00:05]}  Bd7 {[%clk 0:00:56]} 53. Kg6 {[%clk 0:00:05]}  Be8+ {[%clk 0:00:55]} 54. Kg7 {[%clk 0:00:06]}  Bd7 {[%clk 0:00:54]} 55. Bg6 {[%clk 0:00:06]}  Bc8 {[%clk 0:00:49]} 56. Bh5 {[%clk 0:00:06]}  Bd7 {[%clk 0:00:47]} 57. Bg4 {[%clk 0:00:06]}  Bc8 {[%clk 0:00:45]} 58. Kg6 {[%clk 0:00:06]}  Bd7 {[%clk 0:00:38]} 59. Bh3 {[%clk 0:00:05]}  Be8+ {[%clk 0:00:37]} 60. Kg5 {[%clk 0:00:05]}  Bf7 {[%clk 0:00:35]} 61. Bf1 {[%clk 0:00:04]}  Be8 {[%clk 0:00:35]} 62. Be2 {[%clk 0:00:04]}  Bd7 {[%clk 0:00:35]} 63. Bh5 {[%clk 0:00:04]}  Bc8 {[%clk 0:00:35]} 64. Bg6 {[%clk 0:00:05]}  Bd7 {[%clk 0:00:35]} 65. Bd3 {[%clk 0:00:05]}  Be8 {[%clk 0:00:29]} 66. f5 {[%clk 0:00:05]}  exf5 {[%clk 0:00:29]} 67. Bxf5 {[%clk 0:00:06]}  Bf7 {[%clk 0:00:23]} 68. Bc8 {[%clk 0:00:06]}  Be8 {[%clk 0:00:22]} 69. Kf5 {[%clk 0:00:05]}  Bh5 {[%clk 0:00:19]} 70. Ke5 {[%clk 0:00:05]}  Be2 {[%clk 0:00:12]} 71. Be6 {[%clk 0:00:03]}  Bf3 {[%clk 0:00:12]} 72. Bf5 {[%clk 0:00:03]}  Bg2 {[%clk 0:00:12]} 73. Bc8 {[%clk 0:00:03]}  Bf3 {[%clk 0:00:08]} 74. Be6 {[%clk 0:00:02]}  Bg2 {[%clk 0:00:07]} 75. Bf5 {[%clk 0:00:02]}  Bf3 {[%clk 0:00:08]} 76. Bg6 {[%clk 0:00:03]}  Kd7 {[%clk 0:00:07]} 77. Kf6 {[%clk 0:00:03]}  Kc7 {[%clk 0:00:08]} 78. Ke7 {[%clk 0:00:03]}  Be2 {[%clk 0:00:08]} 79. Bf7 {[%clk 0:00:03]}  Bc4 {[%clk 0:00:08]} 80. Kf6 {[%clk 0:00:03]}  Bb3 {[%clk 0:00:09]} 81. Ke5 {[%clk 0:00:03]}  Bc4 {[%clk 0:00:09]} 82. Ke6 {[%clk 0:00:03]}  Bb3 {[%clk 0:00:10]} 83. Ke7 {[%clk 0:00:04]}  Bc4 {[%clk 0:00:10]} 84. Be6 {[%clk 0:00:03]}  Bb3 {[%clk 0:00:11]} 85. Bf5 {[%clk 0:00:03]}  Bc4 {[%clk 0:00:11]} 86. Bc2 {[%clk 0:00:04]}  Ba2 {[%clk 0:00:11]} 87. Ke6 {[%clk 0:00:03]}  Bc4 {[%clk 0:00:11]} 88. Bd1 {[%clk 0:00:04]}  Ba2 {[%clk 0:00:12]} 89. Be2 {[%clk 0:00:04]}  Bb1 {[%clk 0:00:12]} 90. Bxb5 {[%clk 0:00:04]}  cxb5 {[%clk 0:00:11]} 91. Kxd5 {[%clk 0:00:04]}  Ba2+ {[%clk 0:00:12]} 92. Ke5 {[%clk 0:00:04]}  Kc6 {[%clk 0:00:13]} 93. Ke4 {[%clk 0:00:04]}  Bg8 {[%clk 0:00:12]} 94. Ke5 {[%clk 0:00:04]}  Bd5 {[%clk 0:00:12]} 95. Kf5 {[%clk 0:00:05]}  Bg2 {[%clk 0:00:12]} 96. Ke5 {[%clk 0:00:05]}  Bh1 {[%clk 0:00:12]} 97. Ke6 {[%clk 0:00:05]}  Bg2 {[%clk 0:00:12]} 98. Ke5 {[%clk 0:00:05]}  Bd5 {[%clk 0:00:12]} 99. Kf5 {[%clk 0:00:06]}  Bc4 {[%clk 0:00:12]} 100. Ke5 {[%clk 0:00:06]}  Bb3 {[%clk 0:00:12]} 101. Ke4 {[%clk 0:00:06]}  Bd5+ {[%clk 0:00:12]} 102. Ke5 {[%clk 0:00:06]}  Ba2 {[%clk 0:00:12]} 103. Ke4 {[%clk 0:00:06]}  Bb1+ {[%clk 0:00:09]} 104. Ke5 {[%clk 0:00:06]}  Ba2 {[%clk 0:00:09]} 1/2-1/2


[Site "https://www.chess.com"]